Cogmind - Beta 13 X1 @@@ ROGUE MODE // 2023.11.04 @ 13:45:29 Player: kasaphescent Result: Destroyed by U0-YDU(R) with Subdweller Machine Gun Performance ------------- Evolutions (0) 0 Regions Visited (3) 600 Robots Destroyed (22) 110 Value Destroyed (453) 453 Prototype IDs (0) 0 Alien Tech Used (0) 0 Bonus (0) 0 TOTAL SCORE: 1163 Bonus ------- None Cogmind --------- Core Integrity 0/250 Matter 300/300 Energy 125/125 System Corruption 0% Temperature Cool (0) Movement Rolling (160) Ox5 Location -10/Subcaves Parts ------- > --- POWER (1) -------- Light Ion Engine > --- PROPULSION (2) --- Subdweller Monowheel Subdweller Monowheel > --- UTILITY (2) ------ Humpback > --- WEAPON (2) ------- Subdweller Beam Cannon Battle Cannon > --- INVENTORY (35) --- Subdweller Power Source Subdweller Power Source Subdweller Power Source Light Treads Light Treads Light Treads Wheel Subdweller Monowheel Medium Matter Pod (100) Small Laser Subdweller Laser Subdweller Laser Subdweller Beam Cannon Light Assault Rifle Battle Rifle Subdweller Machine Gun Multitool Peak State ------------ > --- POWER ------------ Light Ion Engine > --- PROPULSION ------- Subdweller Monowheel Subdweller Monowheel > --- UTILITY ---------- Humpback > --- WEAPON ----------- Subdweller Beam Cannon Battle Cannon > --- INVENTORY -------- Subdweller Power Source Subdweller Power Source Subdweller Power Source Light Treads Light Treads Light Treads Wheel Subdweller Monowheel Medium Matter Pod Small Laser Subdweller Laser Subdweller Beam Cannon Light Assault Rifle Battle Rifle Multitool [Rating: 13] Favorites ----------- Power Light Ion Engine Engine Light Ion Engine Propulsion Light Treads Treads Light Treads Wheel Subdweller Monowheel Utility Humpback Storage Humpback Weapon Medium Laser Energy Gun Medium Laser Energy Cannon Subdweller Beam Cannon Ballistic Gun Light Assault Rifle Ballistic Cannon Battle Cannon Launcher Grenade Launcher Build | -11 -10 -10 -10 ------- Run | Jun Mat Min Sub Slots Evolved . | . . . . Power . | . . . . Propulsion . | . . . . Utility . | . . . . Weapon . | . . . . Parts Attached 27 | 6 2 3 16 Power 2 | 1 . . 1 Engine 2 | 1 . . 1 Core . | . . . . Reactor . | . . . . Propulsion 13 | 2 1 . 10 Treads 6 | 1 1 . 4 Leg . | . . . . Wheel 7 | 1 . . 6 Hover . | . . . . Flight . | . . . . Utility 3 | 1 1 . 1 Device . | . . . . Storage 3 | 1 1 . 1 Processor . | . . . . Hackware . | . . . . Protection . | . . . . Artifact . | . . . . Weapon 9 | 2 . 3 4 Energy Gun 3 | 1 . 2 . Energy Cannon 2 | . . . 2 Ballistic Gun 2 | 1 . . 1 Ballistic Cannon 1 | . . . 1 Launcher 1 | . . 1 . Special Weapon . | . . . . Impact Weapon . | . . . . Slashing Weapon . | . . . . Piercing Weapon . | . . . . Special Melee Weapon . | . . . . Unidentified Prototypes . | . . . . Parts Lost 9 | . 1 2 6 Power 1 | . . . 1 Propulsion 4 | . 1 . 3 Utility . | . . . . Weapon 4 | . . 2 2 Highest Loss Streak 3 | . 1 2 3 To Critical Strikes . | . . . . Average Slot Usage (%) 84 | . 85 83 84 Engine 14 | . 14 14 14 Treads 19 | . 24 28 18 Wheel 8 | . 3 . 9 Storage 14 | . 14 14 14 Energy Gun 12 | . 14 25 11 Energy Cannon 8 | . . . 10 Ballistic Gun 5 | . 14 1 4 Ballistic Cannon 1 | . . . 1 Naked Turns . | . . . . Heaviest Build 214 | 11 16 17 214 Greatest Support 40 | 20 40 40 40 Greatest Overweight (x) 20 | 1 1 . 20 Average Overweight (x) 5 | . . . 6 Largest Inventory Capacity 35 | 8 10 10 35 Average Capacity 30 | 6 8 10 34 Most Carried 17 | 6 9 9 17 Average Carried 7 | 3 6 7 8 Final Capacity 35 | 8 10 10 35 Final Carried 17 | 6 9 7 17 Class Distribution -------------------- 81% | Hauler-Mutant 18% | Mutant Dominant Class ---------------- Mutant | -10/Materials Mutant | -10/Mines Hauler-Mutant | -10/Subcaves Resources | -11 -10 -10 -10 ----------- Run | Jun Mat Min Sub Matter Collected 608 | 207 210 20 171 Remotely . | . . . . Salvage Created 718 | . 271 56 391 Parts 39 | . 13 3 23 Haulers Intercepted 1 | . 1 . . Recyclers Shooed . | . . . . Parts Field Recycled . | . . . . Retrieved Matter . | . . . . Parts Self-Destructed 5 | . . . 5 Prevented . | . . . . Kills | -11 -10 -10 -10 ------- Run | Jun Mat Min Sub Combat Hostiles Destroyed 20 | . 9 3 8 Guns 13 | . 9 3 1 Cannons 6 | . . . 6 Classes Destroyed 5 | . 3 . 2 Hauler 1 | . 1 . . Recycler 1 | . 1 . . Swarmer 12 | . 9 3 . Sentry 1 | . . . 1 Subdweller 7 | . . . 7 Best Kill Streak 3 | . 3 3 2 Combat Bots Only 3 | . 3 3 2 Max Kills in Single Turn 1 | . 1 1 1 Gunslinging . | . . . . Exploded . | . . . . Melee . | . . . . Uniques/NPCs Destroyed . | . . . . Combat | -11 -10 -10 -10 -------- Run | Jun Mat Min Sub Damage Taken 1234 | . 293 132 809 Core 254 | . 85 33 136 Absorbed by Shields . | . . . . Core Remaining (%) 100 | 100 . . . Volleys Fired 83 | . 39 5 39 Largest 2 | . 2 2 2 Hottest 130 | . 70 90 130 Shots Fired 150 | . 78 10 62 Gun 121 | . 78 10 33 Cannon 29 | . . . 29 Launcher . | . . . . Special . | . . . . Kinetic 49 | . 39 . 10 Thermal 84 | . 39 5 40 Explosive . | . . . . Electromagnetic 17 | . . 5 12 Robot Hit Streak 23 | . 8 2 23 Robot Miss Streak 5 | . 5 3 1 Penetration Max . | . . . . Secondary Targets 1 | . . 1 . Max Gunslinging Chain 1 | . . 1 . Shots Hit Robots 88 | . 43 4 41 Core Hits 34 | . 17 3 14 Critical Kills . | . . . . Critical Parts Destroyed . | . . . . Critical Strikes 2 | . 1 . 1 Burn 2 | . 1 . 1 Melee Attacks . | . . . . Impact . | . . . . Slashing . | . . . . Piercing . | . . . . Sneak Attacks . | . . . . Combat Hostiles . | . . . . Follow-up Attacks . | . . . . Damage Inflicted 1215 | . 474 71 670 Guns 857 | . 474 71 312 Cannons 358 | . . . 358 Explosions . | . . . . Melee . | . . . . Ramming . | . . . . Kinetic 217 | . 146 . 71 Thermal 846 | . 328 38 480 Explosive . | . . . . Electromagnetic 152 | . . 33 119 Impact . | . . . . Slashing . | . . . . Piercing . | . . . . Highest Corruption . | . . . . Average Corruption . | . . . . Corruption Purged . | . . . . Corruption Blocked . | . . . . Overload Shots . | . . . . Overflow Damage . | . . . . Projectiles . | . . . . Explosions . | . . . . Melee . | . . . . Knockbacks 1 | . . . 1 Impact . | . . . . Kinetic 1 | . . . 1 Secondary . | . . . . Self-Inflicted Damage . | . . . . Shots . | . . . . Rammed . | . . . . Targets Rammed . | . . . . Kicked . | . . . . Crushed . | . . . . Highest Temperature 200 | . 200 150 40 Average Temperature 61 | . 65 78 15 Received Heat Transfer 120 | . . . 120 Siege Activations . | . . . . Robots Corrupted 1 | . . . 1 Combat Hostiles 1 | . . . 1 Parts Fried 2 | . . . 2 Impact Corruptions . | . . . . Robots Melted . | . . . . Combat Hostiles . | . . . . Parts Melted 2 | . 1 . 1 Heat Transferred 2109 | . 1036 111 962 Parts Sabotaged . | . . . . Parts Stolen . | . . . . Parts Stripped . | . . . . Power Chain Reactions . | . . . . Missiles Intercepted . | . . . . Alert | -11 -10 -10 -10 ------- Run | Jun Mat Min Sub Peak Influence 272 | . 272 155 . Initial 105 | . . 105 . Average 151 | . 175 148 . Maximum Alert Level 1 | . 1 . . Low Security (%) 71 | 100 59 100 . Level 1 28 | . 40 . . Level 2 . | . . . . Level 3 . | . . . . Level 4 . | . . . . Level 5 . | . . . . High Security . | . . . . Max Security . | . . . . Squads Dispatched 1 | . 1 . . Investigation . | . . . . Extermination . | . . . . Reinforcement 1 | . 1 . . Assault . | . . . . Garrison . | . . . . Intercept . | . . . . Searches Triggered . | . . . . Construction Impeded . | . . . . Haulers Reinforced . | . . . . Active Scanning Responses . | . . . . Cargo Convoy Interrupts . | . . . . Stealth | -11 -10 -10 -10 --------- Run | Jun Mat Min Sub Distress Signals . | . . . . Communications Jammed . | . . . . Distress Signals . | . . . . Times Spotted 31 | . 18 3 10 Peak Tracking Total 4 | . 4 3 2 Tactical Retreats 2 | . 2 . . Traps | -11 -10 -10 -10 ------- Run | Jun Mat Min Sub Traps Triggered 3 | . . . 3 Indirectly . | . . . . Trap Hack Attempts . | . . . . Triggered . | . . . . Disarmed . | . . . . Reprogrammed . | . . . . Reused . | . . . . Traps Extracted . | . . . . Installed . | . . . . Triggered . | . . . . Machines | -11 -10 -10 -10 ---------- Run | Jun Mat Min Sub Machines Disabled . | . . . . Max in Single Turn . | . . . . Machines Repaired . | . . . . Machines Sabotaged . | . . . . Overloaded Fab Kills . | . . . . Hacking | -11 -10 -10 -10 --------- Run | Jun Mat Min Sub Machines Accessed . | . . . . Terminals . | . . . . Fabricators . | . . . . Repair Stations . | . . . . Recycling Units . | . . . . Scanalyzers . | . . . . Garrison Access . | . . . . Total Hacks . | . . . . Successful . | . . . . Failed . | . . . . Catastrophic . | . . . . Database Lockouts . | . . . . Manual . | . . . . Terminals . | . . . . Fabricators . | . . . . Repair Stations . | . . . . Recycling Units . | . . . . Scanalyzers . | . . . . Garrison Access . | . . . . Terminal Hacks . | . . . . Fabricator Hacks . | . . . . Repair Station Hacks . | . . . . Recycling Unit Hacks . | . . . . Scanalyzer . | . . . . Garrison Access Hacks . | . . . . Unauthorized Hacks . | . . . . Terminals . | . . . . Fabricators . | . . . . Repair Stations . | . . . . Recycling Units . | . . . . Scanalyzers . | . . . . Garrison Access . | . . . . Data Cores Recovered . | . . . . Used . | . . . . Hacking Detections . | . . . . Full Trace Events . | . . . . Feedback Events . | . . . . Feedback Blocked . | . . . . Robot Schematics Acquired . | . . . . Robots Built . | . . . . Authchips . | . . . . Time . | . . . . Total Robot Build Rating . | . . . . Part Schematics Acquired . | . . . . Parts Built . | . . . . Authchips . | . . . . Time . | . . . . Total Part Build Rating . | . . . . Parts Repaired . | . . . . Time . | . . . . Parts Recycled . | . . . . Recycled Matter . | . . . . Retrieved Matter . | . . . . Retrieved Components . | . . . . Parts Scanalyzed . | . . . . Part Schematics Acquired . | . . . . Parts Damaged . | . . . . Bothacking | -11 -10 -10 -10 ------------ Run | Jun Mat Min Sub Used RIF Installer . | . . . . Robots Hacked . | . . . . Non-combat . | . . . . Combat . | . . . . Robot Hacks Applied . | . . . . Relay Couplers Released . | . . . . Fabnet Peak Effective % . | . . . . Robots Rewired . | . . . . Allies Hacked . | . . . . Hacks Repelled . | . . . . Allies | -11 -10 -10 -10 -------- Run | Jun Mat Min Sub Total Allies . | . . . . Largest Group . | . . . . Highest-Rated Group . | . . . . Highest-Rated Ally . | . . . . Total Orders . | . . . . Ally Attacks . | . . . . Total Damage . | . . . . Kills . | . . . . Allies Corrupted . | . . . . Allies Melted . | . . . . Intel | -11 -10 -10 -10 ------- Run | Jun Mat Min Sub Robot Analysis Total . | . . . . Derelict Logs Recovered 1 | . . 1 . Drone Launches . | . . . . Drone Recoveries . | . . . . Exploration | -11 -10 -10 -10 ------------- Run | Jun Mat Min Sub Turns Passed 3314 | 53 364 102 2795 Spaces Moved 1181 | 41 165 53 922 Core 1 | 1 . . . Treads 472 | 2 117 53 300 Legs . | . . . . Wheels 708 | 38 48 . 622 Hover . | . . . . Flight . | . . . . Fastest Speed 50 | 50 95 160 160 Average Speed 252 | 91 141 160 285 Slowest Speed 960 | 160 160 160 960 Overloaded Moves . | . . . . Propulsion Burnouts . | . . . . Robots Hopped . | . . . . Cave-ins Triggered . | . . . . Exploration Rate (%) 30 | 4 33 15 69 Regions Visited 3 Branch Regions 2 Pre-discovered Areas 2 | . . 1 1 Known Exits Taken . | . . . . Unknown Exits Taken 3 | 1 1 1 . Scrap Searched 2 | . . . 2 Spaces Dug 2 | . . . 2 Terrain Destroyed 2 | . . . 2 Melee . | . . . . Projectile 2 | . . . 2 AOE . | . . . . Terrain Rammed . | . . . . Walls Destroyed . | . . . . Machines Disabled . | . . . . Actions | -11 -10 -10 -10 --------- Run | Jun Mat Min Sub Total 1360 | 53 229 60 1018 Wait 30 | 1 12 . 17 Move 1178 | 40 164 52 922 Hop . | . . . . Pick Up 31 | 6 7 . 18 Fast Attach 10 | 6 1 . 3 Attach 10 | . 1 2 7 Detach 4 | . 1 . 3 Swap 7 | . . 1 6 Drop 7 | . 4 . 3 Fire 83 | . 39 5 39 Melee . | . . . . Ram . | . . . . Kick . | . . . . Crush . | . . . . Escape Stasis . | . . . . Rewire . | . . . . Trap . | . . . . Miscellaneous . | . . . . Route ------- -11/Junkyard -10/Materials (discovered 3 exits: [*Mat] / [*Min x2]) -10/Mines -10/Subcaves History --------- Turn | Location | Event 28 | -11/Junkyard | Discovered new exit (range 14) 54 | -11/Junkyard | Entered Materials 224 | -10/Materials | Discovered new exit (range 10) 300 | -10/Materials | Build established: Mutant 384 | -10/Materials | Discovered new exit (range 11) 413 | -10/Materials | Discovered new exit (range 10) 418 | -10/Materials | Entered Mines 469 | -10/Mines | Learned location of Mines (-9) 512 | -10/Mines | Discovered new exit (range 6) 520 | -10/Mines | Entered Subcaves 866 | -10/Subcaves | Core integrity fell below 50% 927 | -10/Subcaves | Build established: Hauler-Mutant 1240 | -10/Subcaves | Disturbed a concealed Subdweller 2226 | -10/Subcaves | Lost 3 parts (1p1n1w) 2325 | -10/Subcaves | Core integrity fell below 20% 2505 | -10/Subcaves | Shifting Twisted Machinery released Sub. Laser 2506 | -10/Subcaves | Shifting Twisted Machinery released Multitool 2717 | -10/Subcaves | Learned location of Zion (-6) 2717 | -10/Subcaves | Met a Zionite searching for "candidates" 2742 | -10/Subcaves | Shifting Twisted Machinery released Mak. Armor Plating 2743 | -10/Subcaves | Shifting Twisted Machinery released Sub. Power Source 3057 | -10/Subcaves | Shifting Twisted Machinery released Battle Cannon 3300 | -10/Subcaves | Disturbed a concealed Subdweller 3315 | -10/Subcaves | Destroyed by U0-YDU(R) with Subdweller Machine Gun Last Messages --------------- World map updated: -6/Zion. Mak. Armor Plating falls loose from the Twisted Machinery. Sub. Power Source falls loose from the Twisted Machinery. 02757_ Acquired Sub. Power Source. 02763_ Sub. Monowheel shoots sparks and powers down. 02971_ Sub. Beam Cannon shoots sparks and powers down. Battle Cannon falls loose from the Twisted Machinery. 03074_ Acquired Battle Cannon. 03084_ Acquired 40 matter. 03090_ Acquired Wheel. 03110_ Acquired 8 matter. 03113_ Acquired Sub. Monowheel. 03123_ Dropped Broken Sub. Monowheel. 03135_ VC-EUF(R) destroyed. 03138_ OX-V70(R) knocked back. 03141_ OX-V70(R) destroyed. 03150_ Acquired Sub. Monowheel. 03151_ Acquired 27 matter. 03157_ Acquired Sub. Machine Gun. 03160_ Acquired Sub. Laser. Map ----- +----------------------------------------------------+ | ?????????????????????????????????????????? | | ?????????????????????????????????????????? | | ?????????????????????????????????????????? | | ?????????????????????????????????????????? | | ?????????????????????????????????????????? | | ?????????????????????????????????????????? | | ?????????????????????????????????????????? | | ????????????????????????#????????????????? | | ???????????????????? # #????????????????? | | ??????????????????? ????????????????? | | ??????????????????? ?????????????????? | | ??????????????????? #?????????????????? | | ??????????????????? ###???????????????? | | ???????????????????# #???????????????? | | ??????????#??####### #???????????????? | | ??????????#$?? ## #???????????????? | | ??????????? "##" #????????????????? | | ????????????? #?????????????????? | | ??????????????#" #?????????????????? | | ??????????????# ##???????????????## | | ??????????????###R #??????????????" # | | ???????????????# ##???????????#"" " | | ???????????????# #???????????"" " | | ??????????????## #???????????"" " | | ??????????????# #???????????"" "" | | ??????????????## @## ##???????????#"""" | | ???????????????# ##### #???????????##""" | | ???????????????###???# ##?????###### " | | ????????????????????## #?????# # ""# | | ????????????????????# ##?????## "# | | ????????????????????## #??????#" ## ## | | ????????????????????# ##???###" "###### | | ??????????????????### ##### " ### | | ??????????????????# | | ?????????????????# ## ##### ## | | ?????????????????## ## | | ??????????????????# | | ?????????????????# | | ???????????????? ## ## | | ???????????????## #### #### | | ????????????????###### #??#####?? | | ?????????????????????## ##???????? | | ??????????????????????# #????????? | | ??????????????????????# #???????? | | ?????????????????????? ## ##??????? | | ?????????????????????# ####???????? # | | ?????????????????????# ???????????? ? | | ?????????????????????? ???????????? ? | | ??????????????????????## ?????????????? ? | | ?????????????????????????????????????????? | +----------------------------------------------------+ Best States ------------- Heat Dissipation 25 Energy Generation 10 Energy Capacity 125 Matter Stores 300 Matter Capacity 300 Sight Range 16 Terrain Scan Density 10 Evasion (%) 44 Recoil Reduction 2 Item Schematics ----------------- None Robot Schematics ------------------ None Fabricated ------------ Nothing Alien Tech Used ----------------- None Achievements -------------- None Challenges ------------ None Game ------ Seed ChargeRocketComputer Manual? 0 Play Time 00:12:48 Cumulative 380.3 hours Start 2023.11.04 @ 13:35:40 End 2023.11.04 @ 13:45:29 Sessions 1 Manual Loads 0 Difficulty Rogue Special Mode None Game No. 266 Rogue 266 Adventurer 0 Explorer 0 Win Type - Total 30 Types 26/0/3/1/0/0/0/0/0 Lore% 72 Gallery% 86 Achievement% 69 Wizard Run 0 Options --------- ASCII 0 Keyboard 1 Movement Numpad Keybinds 0 Fullscreen 2 Font 18/SmallcapsGlow Map View 76x50 Tactical HUD 1 Map Filters NONE Filters NONE Steam 1 RUN: 10c71731-6bc3-4855-9415-14147e9d3900